[Event "92nd St. Petersburg-ch Men 2019"]
[Site "Sankt Petersburg"]
[Date "2019.04.11"]
[Round "11.2"]
[White "Duzhakov, Ilya"]
[Black "Shubin, Kirill"]
[Result "1-0"]
[ECO "E18"]
[WhiteElo "2397"]
[BlackElo "2391"]
[Annotator "NA"]
[PlyCount "103"]
[EventDate "2019.04.01"]
[EventType "tourn"]
[EventCountry "RUS"]
[SourceTitle "playchess.com"]
[Source "ChessBase"]
[SourceQuality "1"]
[TimeControl "40/5400+30:1800+30"]

1. d4 {[%emt 0:00:53]} e6 {[%emt 0:00:00]} 2. Nf3 {[%emt 0:00:36]} Nf6 {[%emt 0:00:00]} 3. c4 {[%emt 0:00:09]} b6 {[%emt 0:00:00]} 4. g3 {[%emt 0:03:06]} Bb7 {[%emt 0:00:00]} 5. Bg2 {[%emt 0:00:07]} Be7 {[%emt 0:00:00]} 6. O-O {[%emt 0:00:32]} O-O {[%emt 0:00:01]} 7. Re1 {[%emt 0:01:10]} Na6 {[%emt 0:00:10]} 8. Nc3 {[%emt 0:00:35]} Ne4 {[%emt 0:00:13] E18: Queen's Indian: Old Main Line (4 g3 Bb7 5 Bg2 Be7 6 0-0 0-0 7 Nc3)} 9. Nxe4 {[%emt 0:00:18]} Bxe4 {[%emt 0:00:05]} 10. Ne5 {[%emt 0:00:05]} Bxg2 {[%emt 0:00:09]} 11. Kxg2 {[%emt 0:00:02]} c5 {[%emt 0:00:13]} 12. d5 {[%emt 0:00:31]} Bf6 {[%emt 0:00:05]} 13. Nf3 {[%emt 0:02:01]} exd5 {[%emt 0:06:13]} 14. cxd5 {[%emt 0:00:48]} d6 {[%emt 0:00:13] [#]} 15. Qb3 $146 {[%emt 0:04:28]} ({Predecessor:} 15. e4 Re8 16. Rb1 {1-0 (51) Wojtaszek,R (2711)-Duda,J (2557) Warsaw 2013}) 15... Qd7 {[%emt 0:05:37]} 16. a4 {[%emt 0:01:52]} Rac8 {[%emt 0:03:22]} 17. Bd2 {[%emt 0:07:38]} c4 {[%emt 0:01:12]} 18. Qc2 {[%emt 0:00:34]} Rfe8 {[%emt 0:03:34]} 19. Bc3 {[%emt 0:11:43]} Bxc3 {[%emt 0:00:57]} 20. Qxc3 {[%emt 0:02:17]} f5 {[%emt 0:05:14]} 21. b3 {[%emt 0:04:24]} cxb3 {[%emt 0:10:24]} 22. Qxb3 {[%emt 0:00:03]} Re4 {[%emt 0:00:41]} 23. e3 {[%emt 0:05:06]} Rb4 {[%emt 0:01:31]} 24. Qd1 {[%emt 0:00:20]} Nc5 {[%emt 0:03:25]} 25. a5 {[%emt 0:00:38]} b5 {[%emt 0:01:43]} 26. Nd4 {[%emt 0:02:24]} Ne4 {[%emt 0:01:12]} 27. Nc6 {[%emt 0:12:12]} Rc4 {[%emt 0:13:56]} 28. Rc1 {[%emt 0:17:19]} Rc5 {[%emt 0:00:02]} 29. f3 $11 {[%emt 0:05:20]} Nf6 {[%emt 0:03:43]} 30. Qd4 {[%emt 0:10:47]} Rc7 {[%emt 0:00:06]} 31. Rxc5 {[%emt 0:06:16]} dxc5 {[%emt 0:00:03]} 32. Qxc5 {[%emt 0:00:06]} Qxd5 {[%emt 0:00:09]} 33. Ne7+ {[%emt 0:00:48]} Rxe7 {[%emt 0:00:13]} 34. Qxe7 {[%emt 0:00:02]} Qd2+ {[%emt 0:00:31]} 35. Kf1 {[%emt 0:00:03]} Qxh2 {[%emt 0:00:36]} 36. Qe6+ {[%emt 0:00:18]} Kf8 {[%emt 0:00:44]} 37. Qxf5 {[%emt 0:00:30]} Qh1+ {[%emt 0:00:27]} 38. Kf2 {[%emt 0:00:20]} Qh2+ {[%emt 0:00:06]} 39. Kf1 {[%emt 0:00:02]} Qh1+ {[%emt 0:00:04]} 40. Ke2 {[%emt 0:00:00]} Qg2+ {[%emt 0:00:00]} 41. Kd1 {[%emt 0:10:06]} Qxg3 {[%emt 0:00:06]} 42. Qf4 {[%emt 0:01:28]} Qg2 {[%emt 0:02:36]} 43. e4 {[%emt 0:06:33]} Ke7 {[%emt 0:01:27]} 44. Qe3 {[%emt 0:01:13]} Qb2 {[%emt 0:01:06]} 45. e5 {[%emt 0:03:14]} Qb1+ {[%emt 0:00:22]} 46. Ke2 {[%emt 0:00:45]} Qc2+ {[%emt 0:00:04]} 47. Kf1 {[%emt 0:00:09]} Nd5 {[%emt 0:00:03]} 48. Qxa7+ {[%emt 0:01:47]} Ke6 {[%emt 0:00:03]} 49. Qa6+ {[%emt 0:00:48]} Kf5 {[%emt 0:00:45]} 50. Qxb5 {[%emt 0:00:54]} Qd2 {[%emt 0:00:18]} 51. e6 {[%emt 0:03:30]} Kf6 {[%emt 0:00:06]} 52. e7 {[%emt 0:01:20]} 1-0

[Event "92nd St. Petersburg-ch Men 2019"]
[Site "Sankt Petersburg"]
[Date "2019.04.11"]
[Round "11.3"]
[White "Golikov, Daniil"]
[Black "Lesovoi, Evgenij"]
[Result "1/2-1/2"]
[ECO "A13"]
[WhiteElo "2298"]
[BlackElo "2305"]
[Annotator "NA"]
[PlyCount "80"]
[EventDate "2019.04.01"]
[EventType "tourn"]
[EventCountry "RUS"]
[SourceTitle "playchess.com"]
[Source "ChessBase"]
[SourceQuality "1"]
[TimeControl "40/5400+30:1800+30"]

1. c4 {[%emt 0:05:19]} Nf6 {[%emt 0:00:00]} 2. Nc3 {[%emt 0:00:04]} c5 {[%emt 0:00:00]} 3. Nf3 {[%emt 0:00:31]} e6 {[%emt 0:00:24]} 4. e3 {[%emt 0:00:57]} Be7 {[%emt 0:02:58]} 5. Be2 {[%emt 0:05:33] LiveBook: 4 Games} O-O {[%emt 0:02:16]} 6. O-O {[%emt 0:00:34]} d5 {[%emt 0:03:17]} 7. cxd5 {[%emt 0:00:18]} Nxd5 {[%emt 0:00:28]} 8. Qc2 {[%emt 0:03:04]} Nc6 {[%emt 0:06:53]} 9. a3 {[%emt 0:00:09]} b6 {[%emt 0:01:34]} 10. b3 {[%emt 0:00:13]} Bb7 {[%emt 0:01:16]} 11. Bb2 {[%emt 0:00:09]} Rc8 {[%emt 0:00:21] A13: English Opening: 1...e6} 12. Rfd1 {[%emt 0:01:01]} (12. Rac1 Nxc3 13. Bxc3 Bf6 14. Qb2 Bxc3 15. Rxc3 Qe7 16. Rb1 e5 17. d3 a5 18. Rcc1 f5 19. Nd2 {½-½ (55) Grigoriants,S (2532)-Frolyanov,D (2487) Moscow 2004}) 12... Bf6 {[%emt 0:04:51]} 13. Ne4 {[%emt 0:06:41]} Bxb2 {[%emt 0:00:44]} 14. Qxb2 {[%emt 0:00:02]} Nf6 $146 {[%emt 0:00:17]} ({Predecessor:} 14... Qe7 15. d3 Rfd8 16. Rac1 e5 17. g4 Rc7 18. h3 Qe6 19. Kh2 {0-1 (44) Smirnov,N (2229)-Pugachov,A (2427) Vitebsky 2006}) 15. Nxf6+ {[%emt 0:01:41]} Qxf6 {[%emt 0:00:06]} 16. Qxf6 {[%emt 0:00:08]} gxf6 {[%emt 0:00:05]} 17. d4 {[%emt 0:03:43]} cxd4 {[%emt 0:01:36]} 18. Nxd4 {[%emt 0:00:07]} Nxd4 {[%emt 0:00:19]} 19. Rxd4 {[%emt 0:00:02]} Rfd8 {[%emt 0:00:16]} 20. Rxd8+ {[%emt 0:00:12]} Rxd8 {[%emt 0:00:06]} 21. Rd1 {[%emt 0:00:04]} Rxd1+ {[%emt 0:01:09]} 22. Bxd1 {[%emt 0:00:02]} f5 {[%emt 0:01:46]} 23. g3 {[%emt 0:02:38]} Kf8 {[%emt 0:00:11]} 24. Kf1 {[%emt 0:00:21]} Ke7 {[%emt 0:00:10]} 25. Ke2 {[%emt 0:00:10]} a5 {[%emt 0:00:18]} 26. Kd3 {[%emt 0:00:45]} Kd6 {[%emt 0:00:06]} 27. b4 {[%emt 0:00:24]} axb4 {[%emt 0:00:06]} 28. axb4 {[%emt 0:00:01]} h6 {[%emt 0:00:26]} 29. f4 {[%emt 0:00:08]} f6 {[%emt 0:00:08]} 30. Kd4 {[%emt 0:00:34]} Ba6 {[%emt 0:00:24]} 31. Bf3 {[%emt 0:00:16]} Bb5 {[%emt 0:00:05]} 32. Bg2 {[%emt 0:01:26]} Ba6 {[%emt 0:00:06]} 33. Bf3 $11 {[%emt 0:00:05]} Bb5 {[%emt 0:00:03]} 34. Bg2 {[%emt 0:00:18]} Ba6 {[%emt 0:00:04]} 35. Bf3 {[%emt 0:00:02]} Bb5 {[%emt 0:00:04]} 36. Bg2 {[%emt 0:00:03]} Ba6 {[%emt 0:00:04]} 37. Bf3 {[%emt 0:00:03]} Bb5 {[%emt 0:00:04]} 38. Bg2 {[%emt 0:00:02]} Ba6 {[%emt 0:00:03]} 39. Bf3 {[%emt 0:00:04]} Bb5 {[%emt 0:00:03]} 40. Bg2 {[%emt 0:00:00]} Ba6 {[%emt 0:00:00] Ke4 [%clk 0:00:00] Ke5+} 1/2-1/2